[Event "Titled Tuesday Blitz August 31 2021"]
[White "Kovalev, Vladislav"]
[Black "Hampel, Felix"]
[WhiteFideId "13504398"]
[BlackFideId "24668125"]
[WhiteElo "2573"]
[BlackElo "2288"]
[Result "1-0"]
[Round "02"]
[TimeControl "180+1"]
[Date "2021.08.31"]
[WhiteClock "0:00:17"]
[BlackClock "0:00:10"]

1. e4 {[%clk 0:03:00]}  c5 {[%clk 0:02:59]} 2. Be2 {[%clk 0:03:00]}  Nc6 {[%clk 0:02:57]} 3. d3 {[%clk 0:03:01]}  e6 {[%clk 0:02:50]} 4. f4 {[%clk 0:03:02]}  d5 {[%clk 0:02:50]} 5. Nf3 {[%clk 0:03:02]}  dxe4 {[%clk 0:02:49]} 6. dxe4 {[%clk 0:03:03]}  Qxd1+ {[%clk 0:02:50]} 7. Bxd1 {[%clk 0:03:03]}  Bd7 {[%clk 0:02:50]} 8. c3 {[%clk 0:03:04]}  O-O-O {[%clk 0:02:50]} 9. Be3 {[%clk 0:03:03]}  h6 {[%clk 0:02:43]} 10. Nbd2 {[%clk 0:03:03]}  Nf6 {[%clk 0:02:43]} 11. Be2 {[%clk 0:02:59]}  Be7 {[%clk 0:02:38]} 12. O-O-O {[%clk 0:02:54]}  Kc7 {[%clk 0:02:37]} 13. h3 {[%clk 0:02:46]}  b6 {[%clk 0:01:54]} 14. g4 {[%clk 0:02:45]}  Bc8 {[%clk 0:01:52]} 15. Rhf1 {[%clk 0:02:27]}  Bb7 {[%clk 0:01:51]} 16. Ne5 {[%clk 0:02:26]}  Rhf8 {[%clk 0:01:45]} 17. Nxc6 {[%clk 0:02:25]}  Bxc6 {[%clk 0:01:44]} 18. Bf3 {[%clk 0:02:22]}  Rd3 {[%clk 0:01:40]} 19. Rfe1 {[%clk 0:02:07]}  Rfd8 {[%clk 0:01:36]} 20. Kc2 {[%clk 0:02:07]}  Ba4+ {[%clk 0:01:33]} 21. b3 {[%clk 0:02:01]}  Bc6 {[%clk 0:01:33]} 22. Bg2 {[%clk 0:01:30]}  Nh7 {[%clk 0:01:22]} 23. Nc4 {[%clk 0:01:19]}  Rxd1 {[%clk 0:01:19]} 24. Rxd1 {[%clk 0:01:20]}  Rxd1 {[%clk 0:01:19]} 25. Kxd1 {[%clk 0:01:21]}  f5 {[%clk 0:01:06]} 26. Ne5 {[%clk 0:00:55]}  Bxe4 {[%clk 0:01:05]} 27. Bxe4 {[%clk 0:00:56]}  fxe4 {[%clk 0:01:06]} 28. Ke2 {[%clk 0:00:54]}  Nf6 {[%clk 0:01:05]} 29. Bd2 {[%clk 0:00:52]}  Bd6 {[%clk 0:01:03]} 30. Ng6 {[%clk 0:00:48]}  Kc6 {[%clk 0:00:57]} 31. c4 {[%clk 0:00:48]}  a6 {[%clk 0:00:54]} 32. Bc3 {[%clk 0:00:45]}  b5 {[%clk 0:00:44]} 33. Ke3 {[%clk 0:00:45]}  b4 {[%clk 0:00:22]} 34. Bxf6 {[%clk 0:00:35]}  gxf6 {[%clk 0:00:23]} 35. Kxe4 {[%clk 0:00:36]}  a5 {[%clk 0:00:23]} 36. f5 {[%clk 0:00:33]}  e5 {[%clk 0:00:23]} 37. Nh4 {[%clk 0:00:31]}  Be7 {[%clk 0:00:21]} 38. Nf3 {[%clk 0:00:31]}  Bd6 {[%clk 0:00:20]} 39. h4 {[%clk 0:00:28]}  Be7 {[%clk 0:00:20]} 40. Nd2 {[%clk 0:00:29]}  Bd6 {[%clk 0:00:20]} 41. Nf1 {[%clk 0:00:29]}  Be7 {[%clk 0:00:20]} 42. Ne3 {[%clk 0:00:30]}  Bd8 {[%clk 0:00:19]} 43. Nd5 {[%clk 0:00:31]}  Kd6 {[%clk 0:00:20]} 44. Ne3 {[%clk 0:00:30]}  Kc6 {[%clk 0:00:20]} 45. Nf1 {[%clk 0:00:29]}  Kd6 {[%clk 0:00:20]} 46. Ng3 {[%clk 0:00:30]}  Kc6 {[%clk 0:00:20]} 47. Nh5 {[%clk 0:00:30]}  Kd6 {[%clk 0:00:20]} 48. Ng7 {[%clk 0:00:31]}  Be7 {[%clk 0:00:20]} 49. Ne6 {[%clk 0:00:30]}  Kc6 {[%clk 0:00:20]} 50. g5 {[%clk 0:00:29]}  hxg5 {[%clk 0:00:21]} 51. hxg5 {[%clk 0:00:30]}  fxg5 {[%clk 0:00:21]} 52. Kxe5 {[%clk 0:00:31]}  g4 {[%clk 0:00:09]} 53. Kf4 {[%clk 0:00:30]}  Kd6 {[%clk 0:00:09]} 54. Kxg4 {[%clk 0:00:13]}  Ke5 {[%clk 0:00:09]} 55. Nf4 {[%clk 0:00:14]}  Bd8 {[%clk 0:00:07]} 56. Nd5 {[%clk 0:00:14]}  Kd4 {[%clk 0:00:05]} 57. Kf4 {[%clk 0:00:14]}  Bh4 {[%clk 0:00:04]} 58. f6 {[%clk 0:00:13]}  Bxf6 {[%clk 0:00:03]} 59. Nxf6 {[%clk 0:00:13]}  Kc3 {[%clk 0:00:04]} 60. Nd7 {[%clk 0:00:14]}  Kb2 {[%clk 0:00:04]} 61. Nxc5 {[%clk 0:00:14]}  Kxa2 {[%clk 0:00:05]} 62. Ke4 {[%clk 0:00:14]}  a4 {[%clk 0:00:05]} 63. bxa4 {[%clk 0:00:14]}  b3 {[%clk 0:00:06]} 64. Nxb3 {[%clk 0:00:14]}  Kxb3 {[%clk 0:00:07]} 65. c5 {[%clk 0:00:15]}  Kxa4 {[%clk 0:00:07]} 66. c6 {[%clk 0:00:16]}  Kb5 {[%clk 0:00:08]} 67. c7 {[%clk 0:00:16]}  Kc6 {[%clk 0:00:09]} 68. c8=Q+ {[%clk 0:00:17]}  Kd6 {[%clk 0:00:10]} 69. Qc4 {[%clk 0:00:17]} 1-0


[Site "https://www.chess.com"]

[Event "Titled Tuesday Blitz August 31 2021"]
[White "Kuzubov, Yuriy"]
[Black "Nozdrachev, Leonid"]
[WhiteFideId "14112906"]
[BlackFideId "24113433"]
[WhiteElo "2564"]
[BlackElo "2240"]
[Result "1-0"]
[Round "02"]
[TimeControl "180+1"]
[Date "2021.08.31"]
[WhiteClock "0:00:19"]
[BlackClock "0:00:01"]

1. d4 {[%clk 0:03:00]}  Nf6 {[%clk 0:02:58]} 2. Nf3 {[%clk 0:03:01]}  e6 {[%clk 0:02:58]} 3. c4 {[%clk 0:03:01]}  d5 {[%clk 0:02:57]} 4. Nc3 {[%clk 0:03:00]}  Be7 {[%clk 0:02:54]} 5. Bg5 {[%clk 0:02:58]}  O-O {[%clk 0:02:54]} 6. e3 {[%clk 0:02:58]}  h6 {[%clk 0:02:53]} 7. Bxf6 {[%clk 0:02:57]}  Bxf6 {[%clk 0:02:53]} 8. Qc2 {[%clk 0:02:58]}  b6 {[%clk 0:02:45]} 9. cxd5 {[%clk 0:02:49]}  exd5 {[%clk 0:02:43]} 10. O-O-O {[%clk 0:02:49]}  c6 {[%clk 0:02:31]} 11. Kb1 {[%clk 0:02:38]}  b5 {[%clk 0:02:30]} 12. Ne2 {[%clk 0:02:34]}  Nd7 {[%clk 0:02:23]} 13. g4 {[%clk 0:02:27]}  Nb6 {[%clk 0:02:21]} 14. Rg1 {[%clk 0:02:27]}  Nc4 {[%clk 0:02:15]} 15. Nf4 {[%clk 0:02:21]}  a5 {[%clk 0:02:06]} 16. h4 {[%clk 0:02:13]}  Bxh4 {[%clk 0:02:02]} 17. Bd3 {[%clk 0:01:57]}  Bg5 {[%clk 0:01:36]} 18. Nxg5 {[%clk 0:01:49]}  Qxg5 {[%clk 0:01:37]} 19. Bf5 {[%clk 0:01:46]}  Nd6 {[%clk 0:01:30]} 20. Bh7+ {[%clk 0:01:34]}  Kh8 {[%clk 0:01:29]} 21. Bd3 {[%clk 0:01:35]}  Bd7 {[%clk 0:01:19]} 22. Rh1 {[%clk 0:01:23]}  Rae8 {[%clk 0:00:48]} 23. Rh5 {[%clk 0:01:17]}  Qxg4 {[%clk 0:00:44]} 24. Be2 {[%clk 0:01:14]}  Bf5 {[%clk 0:00:09]} 25. Bxg4 {[%clk 0:01:09]}  Bxc2+ {[%clk 0:00:09]} 26. Kxc2 {[%clk 0:01:10]}  Ne4 {[%clk 0:00:10]} 27. Rh2 {[%clk 0:01:08]}  Nf6 {[%clk 0:00:07]} 28. Bf5 {[%clk 0:01:04]}  Kg8 {[%clk 0:00:07]} 29. Rg1 {[%clk 0:01:02]}  Ne4 {[%clk 0:00:03]} 30. Bxe4 {[%clk 0:00:59]}  Rxe4 {[%clk 0:00:02]} 31. Rxh6 {[%clk 0:00:58]}  Rc8 {[%clk 0:00:02]} 32. Nh5 {[%clk 0:00:48]}  g6 {[%clk 0:00:02]} 33. Nf6+ {[%clk 0:00:46]}  Kg7 {[%clk 0:00:02]} 34. Nxe4 {[%clk 0:00:44]}  Kxh6 {[%clk 0:00:03]} 35. Nc5 {[%clk 0:00:40]}  Rc7 {[%clk 0:00:03]} 36. Kd3 {[%clk 0:00:40]}  g5 {[%clk 0:00:03]} 37. Rh1+ {[%clk 0:00:37]}  Kg6 {[%clk 0:00:02]} 38. Rh8 {[%clk 0:00:37]}  Re7 {[%clk 0:00:03]} 39. b3 {[%clk 0:00:36]}  a4 {[%clk 0:00:02]} 40. bxa4 {[%clk 0:00:36]}  bxa4 {[%clk 0:00:03]} 41. Nxa4 {[%clk 0:00:36]}  Ra7 {[%clk 0:00:04]} 42. Nc3 {[%clk 0:00:36]}  Ra6 {[%clk 0:00:03]} 43. a4 {[%clk 0:00:35]}  f6 {[%clk 0:00:03]} 44. Rc8 {[%clk 0:00:35]}  Kf5 {[%clk 0:00:03]} 45. f3 {[%clk 0:00:34]}  g4 {[%clk 0:00:03]} 46. fxg4+ {[%clk 0:00:33]}  Kxg4 {[%clk 0:00:04]} 47. Re8 {[%clk 0:00:30]}  Kf5 {[%clk 0:00:04]} 48. Kc2 {[%clk 0:00:29]}  Kg5 {[%clk 0:00:04]} 49. Kb3 {[%clk 0:00:27]}  f5 {[%clk 0:00:04]} 50. Kb4 {[%clk 0:00:25]}  Rb6+ {[%clk 0:00:04]} 51. Kc5 {[%clk 0:00:22]}  Rb3 {[%clk 0:00:04]} 52. Ne2 {[%clk 0:00:22]}  Ra3 {[%clk 0:00:04]} 53. Kxc6 {[%clk 0:00:19]}  Rxa4 {[%clk 0:00:04]} 54. Kxd5 {[%clk 0:00:20]}  Ra5+ {[%clk 0:00:03]} 55. Kc4 {[%clk 0:00:20]}  Ra4+ {[%clk 0:00:03]} 56. Kd3 {[%clk 0:00:20]}  Ra3+ {[%clk 0:00:04]} 57. Kd2 {[%clk 0:00:21]}  Ra2+ {[%clk 0:00:03]} 58. Ke1 {[%clk 0:00:21]}  Kf6 {[%clk 0:00:04]} 59. Kf2 {[%clk 0:00:21]}  Kf7 {[%clk 0:00:04]} 60. Re5 {[%clk 0:00:21]}  Kf6 {[%clk 0:00:04]} 61. Kf3 {[%clk 0:00:21]}  Ra1 {[%clk 0:00:01]} 62. Ng3 {[%clk 0:00:21]}  f4 {[%clk 0:00:02]} 63. Kxf4 {[%clk 0:00:20]}  Ra3 {[%clk 0:00:02]} 64. Ne4+ {[%clk 0:00:21]}  Kf7 {[%clk 0:00:01]} 65. d5 {[%clk 0:00:21]}  Kf8 {[%clk 0:00:02]} 66. Re6 {[%clk 0:00:21]}  Ra7 {[%clk 0:00:02]} 67. Nf6 {[%clk 0:00:21]}  Rf7 {[%clk 0:00:03]} 68. e4 {[%clk 0:00:21]}  Kg7 {[%clk 0:00:03]} 69. Ke5 {[%clk 0:00:21]}  Rf8 {[%clk 0:00:03]} 70. d6 {[%clk 0:00:20]}  Ra8 {[%clk 0:00:04]} 71. d7 {[%clk 0:00:20]}  Ra5+ {[%clk 0:00:04]} 72. Nd5 {[%clk 0:00:20]}  Kf7 {[%clk 0:00:04]} 73. d8=Q {[%clk 0:00:20]}  Ra6 {[%clk 0:00:01]} 74. Qe7+ {[%clk 0:00:19]} 1-0


[Site "https://www.chess.com"]

[Event "Titled Tuesday Blitz August 31 2021"]
[White "Le, Tuan Minh"]
[Black "Dzagnidze, Nana"]
[WhiteFideId "12401153"]
[BlackFideId "13601903"]
[WhiteElo "2450"]
[BlackElo "2391"]
[Result "1-0"]
[Round "02"]
[TimeControl "180+1"]
[Date "2021.08.31"]
[WhiteClock "0:00:13"]
[BlackClock "0:00:12"]

1. d4 {[%clk 0:02:58]}  Nf6 {[%clk 0:02:59]} 2. Nf3 {[%clk 0:02:58]}  g6 {[%clk 0:02:58]} 3. Bg5 {[%clk 0:02:53]}  Bg7 {[%clk 0:02:58]} 4. Nbd2 {[%clk 0:02:53]}  O-O {[%clk 0:02:58]} 5. c3 {[%clk 0:02:53]}  d5 {[%clk 0:02:53]} 6. e3 {[%clk 0:02:54]}  c5 {[%clk 0:02:52]} 7. Bd3 {[%clk 0:02:54]}  b6 {[%clk 0:02:50]} 8. Qe2 {[%clk 0:02:52]}  a5 {[%clk 0:02:48]} 9. O-O {[%clk 0:02:51]}  Ba6 {[%clk 0:02:47]} 10. Bxa6 {[%clk 0:02:52]}  Nxa6 {[%clk 0:02:47]} 11. Ne5 {[%clk 0:02:52]}  Qc7 {[%clk 0:02:26]} 12. f4 {[%clk 0:02:36]}  Ne4 {[%clk 0:02:18]} 13. Nxe4 {[%clk 0:02:29]}  dxe4 {[%clk 0:02:19]} 14. f5 {[%clk 0:02:07]}  gxf5 {[%clk 0:01:58]} 15. Rxf5 {[%clk 0:02:05]}  e6 {[%clk 0:01:58]} 16. Rf6 {[%clk 0:02:00]}  cxd4 {[%clk 0:01:04]} 17. exd4 {[%clk 0:01:57]}  Nc5 {[%clk 0:01:04]} 18. Raf1 {[%clk 0:01:42]}  Nd7 {[%clk 0:00:51]} 19. Nxd7 {[%clk 0:01:03]}  Qxd7 {[%clk 0:00:52]} 20. Qxe4 {[%clk 0:01:04]}  Rad8 {[%clk 0:00:40]} 21. Rh6 {[%clk 0:00:51]}  Bxh6 {[%clk 0:00:34]} 22. Bxh6 {[%clk 0:00:24]}  f5 {[%clk 0:00:33]} 23. Qe5 {[%clk 0:00:25]}  Rf7 {[%clk 0:00:19]} 24. Rf3 {[%clk 0:00:25]}  f4 {[%clk 0:00:19]} 25. Qg5+ {[%clk 0:00:19]}  Kh8 {[%clk 0:00:18]} 26. Qe5+ {[%clk 0:00:19]}  Kg8 {[%clk 0:00:18]} 27. Rxf4 {[%clk 0:00:13]}  Qd5 {[%clk 0:00:15]} 28. Rg4+ {[%clk 0:00:13]}  Rg7 {[%clk 0:00:12]} 29. Qxg7# {[%clk 0:00:13]} 1-0


[Site "https://www.chess.com"]

[Event "Titled Tuesday Blitz August 31 2021"]
[White "Maghsoodloo, Parham"]
[Black "Gevorgyan, David Sh."]
[WhiteFideId "12539929"]
[BlackFideId "13303244"]
[WhiteElo "2601"]
[BlackElo "2255"]
[Result "1-0"]
[Round "02"]
[TimeControl "180+1"]
[Date "2021.08.31"]
[WhiteClock "0:00:44"]
[BlackClock "0:00:04"]

1. d4 {[%clk 0:03:00]}  Nf6 {[%clk 0:02:59]} 2. c4 {[%clk 0:03:00]}  g6 {[%clk 0:02:59]} 3. g3 {[%clk 0:02:59]}  Bg7 {[%clk 0:02:58]} 4. Bg2 {[%clk 0:02:59]}  O-O {[%clk 0:02:59]} 5. Nc3 {[%clk 0:02:58]}  d6 {[%clk 0:02:58]} 6. Nf3 {[%clk 0:02:57]}  Nbd7 {[%clk 0:02:57]} 7. O-O {[%clk 0:02:57]}  e6 {[%clk 0:02:54]} 8. e4 {[%clk 0:02:56]}  c5 {[%clk 0:02:50]} 9. d5 {[%clk 0:02:50]}  exd5 {[%clk 0:02:46]} 10. cxd5 {[%clk 0:02:49]}  a6 {[%clk 0:02:44]} 11. a4 {[%clk 0:02:49]}  Re8 {[%clk 0:02:43]} 12. Re1 {[%clk 0:02:43]}  Ng4 {[%clk 0:02:41]} 13. h3 {[%clk 0:02:43]}  Nge5 {[%clk 0:02:40]} 14. Nxe5 {[%clk 0:02:44]}  Nxe5 {[%clk 0:02:34]} 15. f4 {[%clk 0:02:44]}  Nc4 {[%clk 0:02:21]} 16. Kh2 {[%clk 0:02:40]}  Bd7 {[%clk 0:02:09]} 17. Bf1 {[%clk 0:02:35]}  b5 {[%clk 0:02:03]} 18. Qc2 {[%clk 0:02:11]}  Qa5 {[%clk 0:01:33]} 19. Bxc4 {[%clk 0:02:09]}  bxc4 {[%clk 0:01:32]} 20. Bd2 {[%clk 0:02:09]}  Qb6 {[%clk 0:01:27]} 21. Nd1 {[%clk 0:02:08]}  Qb3 {[%clk 0:01:16]} 22. Qxb3 {[%clk 0:02:08]}  cxb3 {[%clk 0:01:17]} 23. Bc3 {[%clk 0:02:09]}  Bd4 {[%clk 0:01:05]} 24. g4 {[%clk 0:01:55]}  a5 {[%clk 0:00:49]} 25. Kg3 {[%clk 0:01:54]}  f6 {[%clk 0:00:47]} 26. Kf3 {[%clk 0:01:43]}  Rec8 {[%clk 0:00:45]} 27. Ra3 {[%clk 0:01:42]}  Rab8 {[%clk 0:00:39]} 28. Re2 {[%clk 0:01:26]}  Bxc3 {[%clk 0:00:35]} 29. bxc3 {[%clk 0:01:25]}  Rb6 {[%clk 0:00:25]} 30. Nb2 {[%clk 0:01:08]}  c4 {[%clk 0:00:23]} 31. Ke3 {[%clk 0:01:06]}  Rb7 {[%clk 0:00:19]} 32. Kd4 {[%clk 0:01:06]}  Rbc7 {[%clk 0:00:19]} 33. Ra1 {[%clk 0:01:05]}  Kf7 {[%clk 0:00:19]} 34. e5 {[%clk 0:01:03]}  fxe5+ {[%clk 0:00:17]} 35. fxe5 {[%clk 0:01:04]}  dxe5+ {[%clk 0:00:17]} 36. Rxe5 {[%clk 0:01:04]}  Kg7 {[%clk 0:00:06]} 37. Rf1 {[%clk 0:00:57]}  Be8 {[%clk 0:00:04]} 38. Rfe1 {[%clk 0:00:45]}  Bf7 {[%clk 0:00:05]} 39. Re7 {[%clk 0:00:45]}  Rxe7 {[%clk 0:00:05]} 40. Rxe7 {[%clk 0:00:46]}  Re8 {[%clk 0:00:04]} 41. Rxe8 {[%clk 0:00:43]}  Bxe8 {[%clk 0:00:05]} 42. g5 {[%clk 0:00:43]}  Bd7 {[%clk 0:00:03]} 43. h4 {[%clk 0:00:44]}  h6 {[%clk 0:00:03]} 44. Kxc4 {[%clk 0:00:43]}  hxg5 {[%clk 0:00:03]} 45. hxg5 {[%clk 0:00:44]}  Kf7 {[%clk 0:00:04]} 46. Kxb3 {[%clk 0:00:43]}  Ke7 {[%clk 0:00:04]} 47. Kc4 {[%clk 0:00:44]}  Kd6 {[%clk 0:00:04]} 48. Kd4 {[%clk 0:00:44]} 1-0


[Site "https://www.chess.com"]

[Event "Titled Tuesday Blitz August 31 2021"]
[White "Mikhailovsky, Vladimir"]
[Black "Tokman, Ariel"]
[WhiteFideId "34105414"]
[BlackFideId "117420"]
[WhiteElo "2315"]
[BlackElo "2345"]
[Result "1-0"]
[Round "02"]
[TimeControl "180+1"]
[Date "2021.08.31"]
[WhiteClock "0:00:17"]
[BlackClock "0:00:12"]

1. e4 {[%clk 0:03:00]}  e5 {[%clk 0:03:00]} 2. Nf3 {[%clk 0:02:59]}  Nc6 {[%clk 0:02:59]} 3. Nc3 {[%clk 0:03:00]}  Bc5 {[%clk 0:02:51]} 4. Nxe5 {[%clk 0:02:59]}  Nxe5 {[%clk 0:02:48]} 5. d4 {[%clk 0:02:59]}  Bd6 {[%clk 0:02:49]} 6. dxe5 {[%clk 0:02:59]}  Bxe5 {[%clk 0:02:50]} 7. Be3 {[%clk 0:02:56]}  d6 {[%clk 0:02:47]} 8. Qd2 {[%clk 0:02:51]}  Nf6 {[%clk 0:02:47]} 9. f3 {[%clk 0:02:45]}  O-O {[%clk 0:02:46]} 10. O-O-O {[%clk 0:02:42]}  Be6 {[%clk 0:02:28]} 11. h4 {[%clk 0:02:41]}  Nd7 {[%clk 0:02:27]} 12. h5 {[%clk 0:02:36]}  Nb6 {[%clk 0:02:26]} 13. h6 {[%clk 0:02:35]}  g6 {[%clk 0:02:26]} 14. f4 {[%clk 0:02:31]}  Bh8 {[%clk 0:02:21]} 15. f5 {[%clk 0:02:28]}  Bc4 {[%clk 0:02:04]} 16. Bd4 {[%clk 0:02:19]}  Be5 {[%clk 0:01:51]} 17. Bxb6 {[%clk 0:01:13]}  Bxf1 {[%clk 0:01:48]} 18. Bxc7 {[%clk 0:01:07]}  Qxc7 {[%clk 0:01:46]} 19. Rhxf1 {[%clk 0:01:07]}  Qa5 {[%clk 0:01:26]} 20. Kb1 {[%clk 0:01:05]}  Qb6 {[%clk 0:00:57]} 21. Rf3 {[%clk 0:00:59]}  Rac8 {[%clk 0:00:55]} 22. b3 {[%clk 0:00:50]}  Rc5 {[%clk 0:00:27]} 23. Nd5 {[%clk 0:00:49]}  Qd8 {[%clk 0:00:21]} 24. Rdf1 {[%clk 0:00:38]}  f6 {[%clk 0:00:17]} 25. fxg6 {[%clk 0:00:31]}  hxg6 {[%clk 0:00:18]} 26. g4 {[%clk 0:00:31]}  g5 {[%clk 0:00:14]} 27. h7+ {[%clk 0:00:29]}  Kh8 {[%clk 0:00:14]} 28. Rf5 {[%clk 0:00:19]}  Rxd5 {[%clk 0:00:11]} 29. Qxd5 {[%clk 0:00:18]}  Qd7 {[%clk 0:00:12]} 30. Rxe5 {[%clk 0:00:17]} 1-0


[Site "https://www.chess.com"]

[Event "Titled Tuesday Blitz August 31 2021"]
[White "Mirzoev, Azer"]
[Black "Perera Alfonso, Rene Humberto"]
[WhiteFideId "13400304"]
[BlackFideId "3514722"]
[WhiteElo "2525"]
[BlackElo "2313"]
[Result "1-0"]
[Round "02"]
[TimeControl "180+1"]
[Date "2021.08.31"]
[WhiteClock "0:00:11"]
[BlackClock "0:00:52"]

1. d4 {[%clk 0:02:59]}  d5 {[%clk 0:02:59]} 2. Nf3 {[%clk 0:02:58]}  Nf6 {[%clk 0:02:59]} 3. Bf4 {[%clk 0:02:58]}  c5 {[%clk 0:02:59]} 4. e3 {[%clk 0:02:58]}  e6 {[%clk 0:02:59]} 5. c3 {[%clk 0:02:58]}  Nc6 {[%clk 0:02:59]} 6. Nbd2 {[%clk 0:02:58]}  Bd6 {[%clk 0:03:00]} 7. Bg3 {[%clk 0:02:57]}  Qe7 {[%clk 0:03:00]} 8. Ne5 {[%clk 0:02:56]}  Bxe5 {[%clk 0:03:00]} 9. dxe5 {[%clk 0:02:55]}  Nd7 {[%clk 0:03:00]} 10. f4 {[%clk 0:02:55]}  f6 {[%clk 0:03:00]} 11. exf6 {[%clk 0:02:54]}  Nxf6 {[%clk 0:03:01]} 12. Bb5 {[%clk 0:02:51]}  O-O {[%clk 0:03:00]} 13. O-O {[%clk 0:02:50]}  Bd7 {[%clk 0:02:51]} 14. Nf3 {[%clk 0:02:41]}  Ne4 {[%clk 0:02:50]} 15. Bh4 {[%clk 0:02:41]}  Qf7 {[%clk 0:02:49]} 16. Bd3 {[%clk 0:02:42]}  h6 {[%clk 0:02:45]} 17. Bxe4 {[%clk 0:02:33]}  dxe4 {[%clk 0:02:46]} 18. Nd2 {[%clk 0:02:33]}  Qg6 {[%clk 0:02:42]} 19. Qc2 {[%clk 0:02:32]}  e5 {[%clk 0:02:41]} 20. Qxe4 {[%clk 0:02:30]}  Bf5 {[%clk 0:02:29]} 21. Qd5+ {[%clk 0:02:26]}  Kh8 {[%clk 0:02:28]} 22. fxe5 {[%clk 0:02:09]}  Qg4 {[%clk 0:02:17]} 23. Rf4 {[%clk 0:01:51]}  Qe2 {[%clk 0:02:13]} 24. Re1 {[%clk 0:01:50]}  Qb5 {[%clk 0:02:07]} 25. Ref1 {[%clk 0:01:33]}  g5 {[%clk 0:01:44]} 26. Rxf5 {[%clk 0:01:32]}  Rxf5 {[%clk 0:01:45]} 27. Rxf5 {[%clk 0:01:31]}  Ne7 {[%clk 0:01:39]} 28. Qe6 {[%clk 0:00:55]}  Nxf5 {[%clk 0:01:30]} 29. Qf6+ {[%clk 0:00:54]}  Ng7 {[%clk 0:01:20]} 30. Qxh6+ {[%clk 0:00:49]}  Kg8 {[%clk 0:01:20]} 31. Bxg5 {[%clk 0:00:49]}  Qe2 {[%clk 0:01:20]} 32. Nf1 {[%clk 0:00:43]}  Qd3 {[%clk 0:01:15]} 33. Bf6 {[%clk 0:00:39]}  Qh7 {[%clk 0:01:15]} 34. Qg5 {[%clk 0:00:38]}  Kf7 {[%clk 0:01:10]} 35. h4 {[%clk 0:00:34]}  Rg8 {[%clk 0:01:05]} 36. Qf4 {[%clk 0:00:25]}  Qf5 {[%clk 0:01:02]} 37. Ng3 {[%clk 0:00:12]}  Qxf4 {[%clk 0:01:01]} 38. exf4 {[%clk 0:00:12]}  Ne8 {[%clk 0:01:01]} 39. Kf2 {[%clk 0:00:12]}  Nxf6 {[%clk 0:01:01]} 40. exf6 {[%clk 0:00:12]}  Kxf6 {[%clk 0:01:02]} 41. Kf3 {[%clk 0:00:13]}  b6 {[%clk 0:01:02]} 42. Ne4+ {[%clk 0:00:12]}  Kg6 {[%clk 0:01:01]} 43. g4 {[%clk 0:00:12]}  Rd8 {[%clk 0:01:01]} 44. f5+ {[%clk 0:00:12]}  Kh6 {[%clk 0:01:01]} 45. g5+ {[%clk 0:00:12]}  Kh5 {[%clk 0:01:00]} 46. g6 {[%clk 0:00:12]}  Kxh4 {[%clk 0:00:57]} 47. g7 {[%clk 0:00:12]}  Kh5 {[%clk 0:00:55]} 48. Nf6+ {[%clk 0:00:11]}  Kg5 {[%clk 0:00:54]} 49. g8=Q+ {[%clk 0:00:12]}  Rxg8 {[%clk 0:00:54]} 50. Nxg8 {[%clk 0:00:13]}  Kxf5 {[%clk 0:00:55]} 51. Ne7+ {[%clk 0:00:13]}  Ke5 {[%clk 0:00:56]} 52. Ke3 {[%clk 0:00:13]}  a5 {[%clk 0:00:55]} 53. c4 {[%clk 0:00:12]}  Kd6 {[%clk 0:00:54]} 54. Nd5 {[%clk 0:00:12]}  b5 {[%clk 0:00:54]} 55. Kd3 {[%clk 0:00:12]}  b4 {[%clk 0:00:53]} 56. Ne3 {[%clk 0:00:12]}  a4 {[%clk 0:00:53]} 57. b3 {[%clk 0:00:12]}  axb3 {[%clk 0:00:52]} 58. axb3 {[%clk 0:00:11]}  Ke5 {[%clk 0:00:53]} 59. Nd1 {[%clk 0:00:11]}  Kd6 {[%clk 0:00:51]} 60. Nf2 {[%clk 0:00:11]}  Ke5 {[%clk 0:00:51]} 61. Ne4 {[%clk 0:00:12]}  Ke6 {[%clk 0:00:52]} 62. Nxc5+ {[%clk 0:00:11]} 1-0


[Site "https://www.chess.com"]

[Event "Titled Tuesday Blitz August 31 2021"]
[White "Mitrabha, Guha"]
[Black "Tymrakiewicz, Rafal"]
[WhiteFideId "5057000"]
[BlackFideId "1108832"]
[WhiteElo "2334"]
[BlackElo "2172"]
[Result "1-0"]
[Round "02"]
[TimeControl "180+1"]
[Date "2021.08.31"]
[WhiteClock "0:01:17"]
[BlackClock "0:00:01"]

1. d4 {[%clk 0:03:00]}  Nf6 {[%clk 0:02:59]} 2. Bg5 {[%clk 0:02:52]}  d5 {[%clk 0:02:54]} 3. Bxf6 {[%clk 0:02:52]}  exf6 {[%clk 0:02:34]} 4. c4 {[%clk 0:02:52]}  c5 {[%clk 0:02:21]} 5. dxc5 {[%clk 0:02:39]}  d4 {[%clk 0:02:21]} 6. a3 {[%clk 0:02:36]}  Nc6 {[%clk 0:02:00]} 7. g3 {[%clk 0:02:32]}  a5 {[%clk 0:01:47]} 8. Bg2 {[%clk 0:02:32]}  Bxc5 {[%clk 0:01:47]} 9. Nf3 {[%clk 0:02:31]}  O-O {[%clk 0:01:47]} 10. O-O {[%clk 0:02:31]}  Re8 {[%clk 0:01:47]} 11. Nbd2 {[%clk 0:02:31]}  a4 {[%clk 0:01:34]} 12. Ne1 {[%clk 0:02:30]}  Bg4 {[%clk 0:01:28]} 13. Bf3 {[%clk 0:02:30]}  Bh3 {[%clk 0:01:27]} 14. Bg2 {[%clk 0:02:29]}  Bg4 {[%clk 0:01:27]} 15. Ndf3 {[%clk 0:02:29]}  Ne5 {[%clk 0:00:42]} 16. Nd3 {[%clk 0:02:26]}  Nxd3 {[%clk 0:00:35]} 17. exd3 {[%clk 0:02:26]}  Qd7 {[%clk 0:00:31]} 18. b4 {[%clk 0:02:25]}  axb3 {[%clk 0:00:31]} 19. Qxb3 {[%clk 0:02:25]}  b6 {[%clk 0:00:15]} 20. Nd2 {[%clk 0:02:25]}  Ra7 {[%clk 0:00:11]} 21. a4 {[%clk 0:02:19]}  f5 {[%clk 0:00:11]} 22. h3 {[%clk 0:02:13]}  Bh5 {[%clk 0:00:10]} 23. Bd5 {[%clk 0:02:07]}  f4 {[%clk 0:00:10]} 24. g4 {[%clk 0:01:52]}  Bxg4 {[%clk 0:00:10]} 25. hxg4 {[%clk 0:01:52]}  Qxg4+ {[%clk 0:00:10]} 26. Bg2 {[%clk 0:01:53]}  Re2 {[%clk 0:00:11]} 27. Rae1 {[%clk 0:01:32]}  Rae7 {[%clk 0:00:11]} 28. Nf3 {[%clk 0:01:28]}  R7e6 {[%clk 0:00:03]} 29. Rxe2 {[%clk 0:01:26]}  Rxe2 {[%clk 0:00:02]} 30. Re1 {[%clk 0:01:22]}  Rxe1+ {[%clk 0:00:01]} 31. Nxe1 {[%clk 0:01:23]}  h5 {[%clk 0:00:01]} 32. a5 {[%clk 0:01:18]}  h4 {[%clk 0:00:01]} 33. axb6 {[%clk 0:01:17]} 1-0


[Site "https://www.chess.com"]